bitfinex/quotes_ETHUSD_20250814
["timestamp","ask_amount","ask_price","bid_price","bid_amount"]
[1755200026748,0.1096,4566.7,4566.1,2.19000972]
[1755200026943,0.9037,4566.5,4566.1,2.19000972]
[1755200027193,0.4648,4566.4,4566.1,2.19000972]
[1755200027342,0.1096,4566.7,4566.1,2.19000972]
[1755200027544,0.9037,4566.3,4566.2,2.19000481]
[1755200027742,0.9037,4566.3,4566.1,2.19005241]
[1755200027988,0.4389,4566.3,4566.1,2.19005241]
[1755200028196,0.4648,4566.2,4566.1,2.19005241]
[1755200028757,0.4648,4566.2,4566.0,0.1096]
[1755200028958,0.9037,4566.1,4565.3,2.19042111]
[1755200029175,0.9037,4566.0,4565.3,2.19039533]
[1755200029361,0.1096,4566.0,4565.4,0.1096]
[1755200029688,0.9037,4565.9,4565.5,2.19034059]
[1755200029890,0.1096,4566.0,4565.5,2.19034059]
[1755200030057,0.9037,4565.8,4565.4,2.29996088]
[1755200030269,0.9037,4565.8,4565.6,2.19027886]
[1755200030470,0.4648,4565.8,4565.7,2.19024465]
[1755200030790,0.5744,4566.4,4565.8,2.19018886]
[1755200030954,0.5744,4566.4,4565.8,2.19019667]
[1755200031302,0.002,4566.3,4565.9,2.19014621]
[1755200031507,0.002,4566.3,4565.8,2.19018638]
[1755200031687,0.002,4566.3,4565.7,0.1096]
[1755200031988,0.002,4566.3,4565.9,2.19010745]
[1755200032175,0.002,4566.3,4565.7,2.29981559]
[1755200032376,0.002,4566.3,4566.2,2.19000481]
[1755200032690,0.002,4566.3,4566.2,5.62500481]
[1755200032892,0.002,4566.3,4566.2,8.62500481]
[1755200034596,0.002,4566.3,4566.2,8.71264181]
[1755200041010,0.002,4566.3,4566.2,5.27764181]
[1755200041184,0.4666,4566.3,4566.2,8.71164181]
[1755200041383,0.002,4566.3,4566.2,5.27764181]
[1755200043612,0.002,4566.3,4566.2,6.37877524]
[1755200051546,0.002,4566.8,4566.7,2.18976503]
[1755200051720,0.002,4566.8,4566.7,24.98292771]
[1755200051921,0.002,4566.8,4566.7,25.52403006]
[1755200052123,0.002,4566.8,4566.7,25.61165706]
[1755200052323,0.9117,4566.8,4566.7,2.40910256]
[1755200052637,0.9117,4566.8,4566.7,2.38699203]
[1755200052836,0.9117,4566.8,4566.7,0.087627]
[1755200053039,1.0213,4566.8,4566.1,0.001]
[1755200053228,0.4451,4566.7,4566.1,0.001]
[1755200053430,0.9097,4566.7,4566.1,0.001]
[1755200053641,0.55,4566.6,4566.1,0.001]
[1755200053842,2.19024465,4565.7,4565.6,0.001]
[1755200054074,0.55,4565.6,4563.6,3.434]
[1755200054246,6.53304396,4565.5,4564.4,2.19082284]
[1755200054559,6.53304396,4565.5,4563.6,3.434]
[1755200054560,0.55,4565.3,4564.3,0.65756]
[1755200054760,3.65018453,4565.2,4564.3,0.65756]
[1755200055053,3.65018453,4565.2,4563.6,0.001]
[1755200055479,0.9097,4565.2,4564.2,2.19095999]
[1755200055680,0.9097,4565.2,4564.3,0.02190916]
[1755200055884,0.9097,4565.2,4563.9,2.19107966]
[1755200056090,0.9097,4565.2,4563.9,0.4534]
[1755200056272,0.9097,4565.2,4564.4,2.19085461]
[1755200056663,0.9097,4565.2,4564.5,2.19081959]
[1755200056991,0.9097,4565.2,4564.6,2.19077232]
[1755200057993,0.4646,4565.2,4564.6,2.19077232]
[1755200058361,0.4646,4565.2,4564.7,2.19171379]
[1755200058562,0.4646,4565.2,4564.8,2.19067623]
[1755200058893,3.433,4565.4,4564.7,0.001]
[1755200058894,0.4451,4565.5,4565.1,2.19153251]
[1755200059062,0.4646,4565.8,4565.1,0.001]
[1755200059387,0.4646,4565.8,4565.2,2.19047766]
[1755200059748,0.4646,4565.8,4565.1,0.001]
[1755200059989,0.4451,4566.2,4565.1,3.001]
[1755200060304,0.4451,4566.2,4565.5,2.19031385]
[1755200060583,0.4451,4566.2,4565.6,2.19028792]
[1755200060762,0.4451,4566.2,4565.2,0.4534]
[1755200061165,0.4451,4566.2,4565.6,2.19029143]
[1755200061904,0.496,4566.1,4565.7,0.657336]
[1755200062103,0.4601,4566.0,4565.3,2.1904165]
[1755200062401,0.496,4565.9,4565.3,5.1904165]
[1755200062554,0.496,4565.9,4565.4,5.1903859]
[1755200062755,3.433,4566.5,4565.5,2.19033897]
[1755200062956,0.9561,4565.8,4565.5,2.19033897]
[1755200063170,0.496,4565.7,4565.5,2.19029369]
[1755200063406,0.496,4566.2,4565.6,2.19024871]
[1755200063697,0.1096,4566.1,4565.6,2.19024871]
[1755200064050,0.1096,4566.1,4565.4,0.1096]
[1755200064255,0.496,4566.0,4565.4,0.1096]
[1755200064582,0.496,4566.0,4565.4,0.42066]
[1755200064782,0.4601,4565.9,4565.4,0.1096]
[1755200064983,0.1096,4565.7,4565.3,0.496]
[1755200065158,0.9561,4565.6,4565.3,0.496]
[1755200065356,3.5426,4565.7,4565.1,0.001]
[1755200065562,0.9561,4565.5,4565.1,0.001]
[1755200065791,0.9561,4565.4,4565.1,0.001]
[1755200065993,0.9561,4565.3,4565.1,0.001]
[1755200066194,0.9561,4565.2,4565.1,0.001]
[1755200066763,1.0657,4565.2,4565.1,0.001]
[1755200066969,0.6056,4565.2,4565.1,0.001]
[1755200068600,0.1096,4565.2,4565.1,0.001]
[1755200068787,0.6056,4565.2,4565.1,0.001]
[1755200069562,0.1096,4565.2,4565.1,0.001]
[1755200070012,0.6056,4565.2,4565.1,0.001]
[1755200070218,1.0657,4565.2,4565.1,0.001]
[1755200073340,0.1096,4565.2,4565.1,0.001]
[1755200074038,0.1096,4565.2,4564.7,0.001]
[1755200074039,2.74067648,4564.8,4564.7,0.001]
[1755200074183,0.55,4564.6,4563.7,0.001]
[1755200074535,3.14695616,4564.5,4563.7,0.001]
[1755200074888,0.9561,4564.4,4563.7,0.001]
[1755200075206,0.9561,4564.3,4563.7,0.001]
[1755200075417,2.74077713,4564.6,4563.7,0.001]
[1755200075418,0.9561,4564.2,4563.7,0.001]
[1755200075821,3.69706446,4564.2,4563.7,0.001]
[1755200076222,4.9391,4564.2,4563.7,0.001]
[1755200076807,7.13006446,4564.2,4563.7,0.001]
[1755200077305,4.9391,4564.2,4563.7,0.001]
[1755200077711,7.13006446,4564.2,4563.7,0.001]
[1755200078431,4.9391,4564.2,4563.7,0.001]
[1755200078630,7.13006446,4564.2,4563.7,0.001]
[1755200079396,7.11566446,4564.2,4563.7,0.001]
[1755200080438,3.68266446,4564.2,4563.7,0.001]
[1755200080635,7.11566446,4564.2,4563.7,0.001]
[1755200083860,7.22526446,4564.2,4563.7,0.001]
[1755200084056,10.22526446,4564.2,4563.7,0.001]
[1755200084241,10.22526446,4564.2,4564.1,1e-08]
[1755200084836,6.79226446,4564.2,4564.1,1e-08]
[1755200085433,10.22526446,4564.2,4564.1,1e-08]
[1755200086658,10.22526446,4564.2,4563.6,1e-08]
[1755200086659,0.55,4563.7,4563.6,1e-08]
[1755200086845,14.5408045,4563.7,4563.6,1e-08]
[1755200087051,15.4969045,4563.7,4563.6,1e-08]
[1755200091860,12.0639045,4563.7,4563.6,1e-08]
[1755200092039,15.4969045,4563.7,4563.6,1e-08]
[1755200096981,15.4969045,4563.7,4562.6,0.001]
[1755200096982,2.74168474,4562.7,4562.6,0.001]
[1755200097165,7.48268473,4562.7,4562.6,0.001]
[1755200097365,7.59228473,4562.7,4562.6,0.001]
[1755200099624,2.74211714,4561.8,4561.2,0.001]
[1755200099767,6.66581714,4561.8,4561.2,0.001]
[1755200100097,6.17511714,4561.8,4561.2,0.001]
[1755200100262,6.66481714,4561.8,4561.2,0.001]
[1755200100473,7.13371714,4561.8,4561.2,0.001]
[1755200101813,2.74211714,4561.8,4561.2,0.001]
[1755200102010,0.58738498,4563.0,4561.7,0.8393]
[1755200102218,3.433,4562.6,4561.7,0.4645]
[1755200102427,2.74211714,4561.8,4561.7,0.001]
[1755200102723,6.17511714,4561.8,4561.7,0.001]
[1755200102895,6.66581714,4561.8,4561.7,0.001]
[1755200103090,7.13471714,4561.8,4561.7,0.001]
[1755200103288,2.74211714,4561.8,4561.7,0.001]
[1755200103497,6.17511714,4561.8,4561.7,0.001]
[1755200104014,7.13471714,4561.8,4561.7,0.001]
[1755200104544,3.70171714,4561.8,4561.7,0.001]
[1755200104745,2.74211714,4561.8,4561.7,0.001]
[1755200105025,3.983,4561.8,4561.7,0.4645]
[1755200105208,6.17511714,4561.8,4561.7,0.4645]
[1755200105375,3.433,4561.8,4561.7,0.4645]
[1755200105580,3.433,4561.8,4561.7,0.8393]
[1755200105813,3.433,4561.8,4561.7,0.4645]
[1755200106327,0.55,4562.0,4561.7,0.4645]
[1755200106629,2.19193232,4562.2,4561.8,0.4635]
[1755200106838,0.55,4561.9,4561.7,0.3758]
[1755200107021,1.30799999,4562.7,4561.8,0.3748]
[1755200107210,3.433,4562.6,4561.8,0.3748]
[1755200107533,0.55,4562.5,4561.9,0.4635]
[1755200107735,0.55,4562.3,4561.9,0.4635]
[1755200107943,3.433,4562.2,4562.0,0.4635]
[1755200108099,1.30799999,4562.7,4562.0,0.8383]
[1755200108299,0.55,4562.5,4562.1,0.4635]
[1755200108534,2.19192494,4562.2,4561.7,0.001]
[1755200108734,0.55,4561.8,4561.7,0.001]
[1755200108943,3.983,4561.8,4561.7,0.001]
[1755200109846,4.0926,4561.8,4561.7,0.001]
[1755200110141,4.0926,4561.8,4561.7,0.4645]
[1755200110301,3.5426,4561.8,4561.7,0.4645]
[1755200110497,0.1096,4561.8,4561.7,0.4645]
[1755200110811,3.5416,4561.8,4561.7,0.4645]
[1755200111644,6.28371714,4561.8,4561.7,0.001]
[1755200112013,6.77441714,4561.8,4561.7,0.001]
[1755200112213,7.24331714,4561.8,4561.7,0.001]
[1755200112416,7.24331714,4561.8,4561.2,0.001]
[1755200112417,0.55,4561.5,4561.2,0.001]
[1755200112626,0.6596,4561.3,4561.2,0.001]
[1755200112827,4.0916,4561.3,4561.2,0.4645]
[1755200113029,3.5416,4561.3,4561.2,0.4645]
[1755200113452,0.1096,4561.3,4561.2,0.4645]
[1755200113650,3.5416,4561.3,4561.2,0.4645]
[1755200114060,0.1096,4561.3,4561.2,0.4645]
[1755200114211,3.5416,4561.3,4561.2,0.001]
[1755200115058,0.1096,4561.3,4561.2,0.001]
[1755200115265,0.1096,4561.3,4561.2,0.8393]
[1755200115266,3.5416,4561.3,4561.2,0.8393]
[1755200115589,0.1096,4561.3,4561.2,0.4645]
[1755200115712,3.5416,4561.3,4561.2,0.4645]
[1755200115909,3.5416,4561.3,4561.2,0.001]
[1755200116364,5.73395744,4561.3,4561.2,0.001]
[1755200116549,3.5416,4561.3,4561.2,0.001]
[1755200117678,3.5416,4561.3,4560.8,0.001]
[1755200117833,3.5416,4561.3,4557.2,0.02787434]
[1755200117834,2.1939731,4558.0,4557.2,0.02787434]
[1755200118034,0.55,4557.8,4557.3,0.4635]
[1755200118225,0.55,4557.8,4557.2,0.02787434]
[1755200118226,0.55,4557.6,4557.2,0.02787434]
[1755200118430,2.19419132,4557.5,4557.2,0.02787434]
[1755200118626,3.463,4557.4,4557.2,0.02787434]
[1755200119156,3.66641393,4557.3,4557.2,0.02787434]
[1755200119358,0.4084154,4557.3,4557.2,0.02787434]
[1755200119862,3.8704154,4557.3,4557.2,0.49137434]
[1755200120358,3.66600147,4557.3,4557.2,0.02787434]
[1755200121561,3.66500147,4557.3,4557.2,0.02787434]
[1755200121959,3.66400147,4557.3,4557.2,0.46557434]
[1755200123030,2.19404464,4557.8,4557.2,0.46557434]
[1755200123229,3.66330455,4557.7,4557.2,0.46557434]
[1755200123455,0.20330455,4557.6,4557.2,0.02787434]
[1755200123672,5.26,4558.0,4557.2,0.02787434]
[1755200123673,0.20330455,4557.5,4557.3,0.4377]
[1755200123888,3.66314754,4557.4,4557.3,0.4377]
[1755200124394,3.66314754,4557.4,4557.3,2.6319817]
[1755200124570,2.19370659,4558.5,4557.3,3.0067817]
[1755200124769,3.66207072,4558.4,4557.4,0.4377]
[1755200125083,3.66207072,4558.4,4557.2,0.02787434]
[1755200125084,0.55,4558.2,4557.2,0.02787434]
[1755200125233,2.19427992,4557.4,4557.2,0.02787434]
[1755200125436,3.66207072,4557.3,4557.2,0.02787434]
[1755200126593,3.66107072,4557.3,4557.2,0.46557434]
[1755200126758,3.66107072,4557.3,4557.2,0.84037434]
[1755200126960,3.66107072,4557.3,4557.2,0.46557434]
[1755200127709,3.66107072,4557.3,4557.2,0.02787434]
[1755200127861,3.77067072,4557.3,4557.2,0.02787434]
[1755200128385,3.77067072,4557.3,4557.2,0.46557434]
[1755200129207,3.5676,4557.3,4557.2,0.02787434]
[1755200129425,4.2366104,4557.3,4557.2,0.02787434]
[1755200129695,6.5147921,4557.3,4557.2,0.02787434]
[1755200129897,5.9627921,4557.3,4557.2,0.02787434]
[1755200130399,6.9788921,4557.3,4557.2,0.02787434]
[1755200130562,7.4373921,4557.3,4557.2,0.02787434]
[1755200131097,10.64030964,4557.3,4557.2,0.02787434]
[1755200131257,7.18430964,4557.3,4557.2,0.02787434]
[1755200131462,7.17980964,4557.3,4557.2,0.02787434]
[1755200131697,7.63830964,4557.3,4557.2,0.02787434]
[1755200132194,7.63814168,4557.3,4557.2,0.02787434]
[1755200132379,4.18414168,4557.3,4557.2,0.02787434]
[1755200132581,7.63814168,4557.3,4557.2,0.02787434]
[1755200132899,7.55099337,4557.3,4557.2,0.02787434]
[1755200133401,7.34824379,4557.3,4557.2,0.02787434]
[1755200133576,7.55092843,4557.3,4557.2,0.02787434]
[1755200134314,7.55092843,4557.3,4556.3,0.001]
[1755200134315,3.0,4556.7,4556.3,0.001]
[1755200134618,2.30431512,4556.4,4556.3,0.001]
[1755200134769,3.5636,4556.4,4556.3,0.001]
[1755200134975,3.5656,4556.4,4556.3,0.4387]
[1755200135522,0.1096,4556.4,4556.3,0.4387]
[1755200135687,0.4661,4558.3,4556.3,0.8135]
[1755200135869,0.1096,4557.3,4556.4,0.83444715]
[1755200136072,0.4585,4558.5,4556.6,2.19461879]
[1755200136073,0.20259315,4558.4,4556.6,2.19461879]
[1755200136384,0.1096,4557.7,4557.0,2.30399244]
[1755200136579,0.1096,4557.7,4557.1,3.0068371]
[1755200136785,3.46,4557.6,4557.2,0.4377]
[1755200137005,3.46,4557.6,4557.3,0.4377]
[1755200137321,3.46,4557.6,4557.4,0.4377]
[1755200137524,0.1096,4557.7,4557.5,0.4377]
[1755200137698,0.1096,4557.7,4557.2,2.56912027]
[1755200137699,0.20471206,4558.6,4557.6,0.4377]
[1755200137903,0.1096,4557.9,4557.6,0.4377]
[1755200138220,3.458,4557.8,4557.7,0.4377]
[1755200140235,3.458,4557.8,4557.0,2.30401574]
[1755200140536,3.458,4557.8,4557.0,0.6335184]
[1755200141493,3.455,4557.7,4557.0,0.1096]
[1755200141743,3.455,4557.7,4557.0,2.30401959]
[1755200141944,3.455,4557.7,4557.0,0.1096]
[1755200143259,3.455,4557.7,4557.0,2.30401958]
[1755200143697,3.455,4557.7,4557.0,0.1096]
[1755200143901,0.1096,4557.9,4557.1,0.4377]
[1755200144123,3.452,4557.6,4557.2,2.19432985]
[1755200144422,3.452,4557.6,4557.3,0.4377]
[1755200144912,3.452,4557.6,4557.4,0.4377]
[1755200145236,0.1096,4557.9,4557.4,0.4377]
[1755200145398,3.65507931,4557.8,4557.4,0.4377]
[1755200145598,3.451,4557.8,4557.4,0.4377]
[1755200145804,0.1096,4557.9,4557.1,2.46854055]
[1755200145805,3.45,4557.7,4557.1,2.46854055]
[1755200146010,3.45,4557.7,4557.5,0.4377]
[1755200146318,0.20439656,4557.6,4557.5,0.4377]
[1755200147247,3.449,4557.6,4557.5,0.4377]
[1755200147452,3.65382801,4557.6,4557.5,0.4377]
[1755200147611,3.65382801,4557.6,4557.0,2.63212561]
[1755200147950,0.20482801,4557.5,4557.0,3.52439464]
[1755200148151,0.20482801,4557.4,4557.0,3.52439464]
[1755200148450,3.449,4557.6,4557.0,3.52439464]
[1755200148753,3.447,4557.5,4557.0,1.32996903]
[1755200148907,3.447,4557.4,4557.1,2.1943377]
[1755200149108,3.447,4557.4,4557.2,0.4377]
[1755200149710,3.447,4557.4,4557.0,2.30402031]
[1755200149938,3.447,4557.4,4557.1,0.4377]
[1755200150348,3.447,4557.4,4557.0,2.30402031]
[1755200150556,3.447,4557.4,4557.2,0.4377]
[1755200151552,3.447,4557.4,4557.0,2.30502244]
[1755200152064,3.444,4557.3,4557.0,0.1106]
[1755200152214,0.4607,4557.8,4557.0,2.3050185]
[1755200152831,3.442,4557.7,4557.0,2.3050185]
[1755200153050,3.442,4557.7,4557.0,0.1106]
[1755200153251,0.1096,4557.1,4557.0,0.001]
[1755200153463,3.5516,4557.1,4557.0,0.001]
[1755200153640,4.0123,4557.1,4557.0,0.001]
[1755200153964,3.5516,4557.1,4557.0,0.001]
[1755200154126,0.1096,4557.1,4557.0,0.001]
[1755200154322,3.441,4557.1,4557.0,0.001]
[1755200157785,0.47153872,4557.7,4557.0,0.4325]
[1755200158086,3.438,4557.6,4557.0,0.5421]
[1755200158884,3.438,4557.6,4557.0,0.1106]
[1755200159184,3.438,4557.6,4557.0,0.5421]
[1755200160148,0.1096,4557.7,4557.0,2.30498286]
[1755200160387,0.002,4558.3,4557.9,2.19398456]
[1755200160587,0.002,4558.3,4557.7,0.1096]
[1755200160791,3.437,4558.2,4558.1,2.19386422]
[1755200161095,3.437,4558.2,4557.8,0.4315]
[1755200161387,3.437,4558.2,4557.9,0.4315]
[1755200161694,3.437,4558.2,4558.1,2.19389657]
[1755200161890,0.002,4558.3,4558.2,2.19384844]
[1755200162396,0.002,4558.3,4558.1,0.1096]
[1755200162695,2.19405408,4557.8,4556.5,0.001]
[1755200162894,0.1096,4557.6,4557.0,0.1106]
[1755200163068,0.9356,4557.5,4557.0,0.001]
[1755200163263,0.9356,4557.4,4557.0,0.001]
[1755200163577,3.437,4557.3,4557.0,0.001]
[1755200163887,3.5466,4557.3,4557.0,0.001]
[1755200164565,0.1096,4557.3,4557.0,0.001]
[1755200164751,3.437,4557.2,4557.1,2.194378]
[1755200165086,3.437,4557.7,4557.6,0.1096]
[1755200165288,3.437,4557.7,4557.3,2.1942704]
[1755200165489,3.437,4557.7,4557.6,0.1096]
[1755200165656,3.8977,4557.7,4557.0,0.001]
[1755200165851,0.1096,4557.6,4557.0,0.001]
[1755200166490,0.1096,4557.6,4557.0,2.19542246]
[1755200166785,0.1096,4557.6,4557.0,0.001]
[1755200167551,0.1096,4557.6,4557.0,2.1954216]
[1755200167894,0.1096,4557.6,4557.1,2.19436632]
[1755200168278,0.1096,4557.6,4557.0,0.001]
[1755200169279,0.1096,4557.6,4557.0,2.1953838]
[1755200169579,3.5466,4557.6,4557.0,0.75095533]
[1755200169779,3.5466,4557.6,4557.0,0.001]
[1755200169965,3.437,4557.6,4557.0,0.001]
[1755200170171,3.5466,4557.6,4557.0,0.001]
[1755200171108,3.5466,4557.6,4557.0,2.19537808]
[1755200171263,3.5466,4557.6,4557.1,2.1943777]
[1755200171467,3.5466,4557.6,4557.0,0.001]
[1755200172605,3.5466,4557.6,4557.0,2.19539006]
[1755200173509,3.5466,4557.6,4557.0,0.001]
[1755200173897,3.5466,4557.6,4557.0,2.19538708]
[1755200174198,3.437,4557.5,4557.0,0.001]
[1755200174399,3.437,4557.5,4557.1,2.19437241]
[1755200174570,0.1096,4557.6,4557.1,2.62587241]
[1755200174769,3.437,4557.5,4557.1,0.4315]
[1755200175271,3.437,4557.5,4557.0,2.19538321]
[1755200176010,3.437,4557.5,4557.0,0.001]
[1755200176305,1.61,4557.4,4557.0,2.6268901]
[1755200176914,1.61,4557.4,4557.1,2.1943751]
[1755200177283,1.61,4557.4,4557.2,2.19431385]
[1755200177808,1.61,4557.4,4557.1,2.19436704]
[1755200178014,1.61,4557.4,4557.0,0.4325]
[1755200178306,1.61,4557.4,4557.0,0.001]
[1755200178529,1.61,4557.4,4557.1,2.19435075]
[1755200178732,1.61,4557.4,4556.9,3.1096]
[1755200178938,1.61,4557.4,4555.3,0.65866]
[1755200178939,31.3284955,4556.9,4553.6,0.1096]
[1755200179091,3.7306,4557.1,4552.3,0.3748]
[1755200179092,0.55,4555.1,4552.3,0.3748]
[1755200179291,1.13738498,4554.3,4552.0,2.19683655]
[1755200179614,2.19588785,4554.0,4552.0,0.26283366]
[1755200179813,2.19621182,4553.3,4552.0,2.19681493]
[1755200180126,2.19621182,4553.3,4550.8,2.19739479]
[1755200180127,2.19651638,4552.7,4550.4,2.197609]
[1755200180313,2.19659527,4552.5,4551.1,2.19725674]
[1755200180512,2.19659527,4552.5,4551.0,0.4315]
[1755200180513,3.476,4552.4,4551.0,0.4315]
[1755200180825,3.476,4552.3,4551.3,2.19714896]
[1755200181233,3.477,4552.2,4551.7,2.19698004]
[1755200181436,3.477,4552.1,4551.8,2.19692558]
[1755200181611,3.478,4552.0,4551.8,2.62842558]
[1755200181812,3.478,4552.0,4551.9,2.64068481]
[1755200182199,3.478,4552.0,4551.9,0.4438]
[1755200182837,3.478,4552.0,4551.3,0.48259437]
[1755200183033,3.477,4552.2,4552.1,2.19678829]
[1755200183209,3.477,4552.3,4552.2,2.19671859]
[1755200183408,0.4607,4553.2,4551.6,0.3748]
[1755200183732,3.477,4553.1,4552.2,2.19669338]
[1755200184029,0.4607,4553.2,4551.7,0.4438]
[1755200184030,0.4607,4553.2,4552.1,2.19678463]
[1755200184235,0.4607,4553.2,4551.7,0.4438]
[1755200184419,3.476,4553.1,4551.8,2.19693308]
[1755200184936,3.476,4553.1,4552.2,2.19673476]
[1755200185097,3.476,4553.0,4552.3,2.19668076]
[1755200185297,3.476,4553.0,4552.1,2.19674785]
[1755200185973,3.0,4552.9,4551.4,0.001]
[1755200186254,3.474,4552.8,4551.9,2.1968397]
[1755200186412,3.474,4552.8,4551.4,0.001]
[1755200186617,3.474,4552.7,4551.5,0.4438]
[1755200186817,3.474,4552.7,4552.0,2.19679201]
[1755200187032,0.4696,4552.9,4552.1,2.19677835]
[1755200187248,3.473,4552.6,4551.9,2.64064834]
[1755200187557,3.473,4552.6,4552.0,2.19682935]
[1755200187855,3.473,4552.6,4552.1,2.19678666]
[1755200188057,3.472,4552.5,4551.5,2.19707744]
[1755200188253,3.472,4552.5,4552.1,0.4438]
[1755200188854,3.472,4552.5,4552.3,2.19665544]
[1755200189055,0.4696,4552.9,4552.4,2.19663734]
[1755200189264,3.471,4552.8,4552.4,2.30623734]
[1755200189703,0.4696,4553.7,4551.7,2.19698134]
[1755200189973,0.4696,4554.3,4553.2,2.1962323]
[1755200190277,3.469,4554.2,4553.9,0.1096]
[1755200190425,3.9386,4554.2,4553.9,0.1096]
[1755200191363,0.4696,4554.1,4553.9,0.1096]
[1755200192067,3.468,4554.0,4553.9,0.1096]
[1755200192830,0.1096,4554.7,4554.2,2.19577123]
[1755200193030,2.19484439,4556.2,4553.9,2.3055161]
[1755200193031,3.467,4554.6,4554.3,2.19572587]
[1755200193262,3.467,4554.5,4554.2,2.19577314]
[1755200193473,3.467,4554.4,4554.2,2.19577314]
[1755200193652,3.5792,4555.2,4554.1,2.1958143]
[1755200193834,3.467,4555.1,4553.8,0.4438]
[1755200194040,3.467,4555.1,4554.3,2.1956988]
[1755200194353,3.467,4555.1,4554.5,0.1096]
[1755200195458,3.464,4555.0,4554.5,0.1096]
[1755200195665,3.9336,4555.0,4554.5,0.1096]
[1755200196169,0.4532,4554.9,4554.5,0.1096]
[1755200196332,2.19552359,4554.8,4553.0,0.4438]
[1755200196527,0.1096,4554.8,4554.1,0.1096]
[1755200196729,0.9228,4554.7,4554.1,0.1096]
[1755200198028,0.4696,4554.6,4554.1,0.1096]
[1755200198339,0.4532,4554.5,4554.1,0.1096]
[1755200198536,4.3838,4554.4,4554.1,0.1096]
[1755200198736,0.5792,4554.8,4554.1,0.1096]
[1755200198973,3.46,4554.3,4554.1,0.1096]
[1755200199270,3.459,4554.2,4553.1,0.3748]
[1755200199451,0.4696,4554.8,4553.1,0.3748]
[1755200199452,0.4696,4554.8,4554.2,2.30535573]
[1755200199658,3.459,4554.7,4554.2,2.30535573]
[1755200199968,0.4696,4554.8,4554.2,2.30535573]
[1755200199969,1.61,4554.9,4554.2,0.1096]
[1755200200134,0.1096,4555.0,4554.9,2.19543788]
[1755200200331,3.459,4555.0,4554.9,0.1096]
[1755200200558,3.459,4555.0,4554.9,2.74883788]
[1755200200993,0.1096,4555.7,4554.9,2.30502481]
[1755200201161,0.92014781,4556.3,4555.2,2.19525594]
[1755200201328,3.9276,4556.2,4555.3,2.1952005]
[1755200201653,3.9276,4556.2,4554.8,0.4438]
[1755200201654,0.4696,4556.2,4555.6,0.1096]
[1755200201858,3.458,4556.1,4555.6,0.1096]
[1755200202270,3.9276,4556.1,4555.6,0.1096]
[1755200202453,3.458,4556.1,4555.6,0.1096]
[1755200202643,0.4696,4556.0,4555.6,0.1096]
[1755200202847,0.002,4555.8,4555.6,0.1096]
[1755200203838,3.455,4555.7,4555.6,2.30467715]
[1755200204038,3.455,4555.7,4555.6,0.1096]
[1755200204648,0.46806537,4556.3,4555.6,0.1096]
[1755200204860,0.4696,4557.2,4555.7,2.19505235]
[1755200205076,3.455,4556.7,4555.9,2.19495599]
[1755200205275,3.455,4556.7,4556.0,0.4438]
[1755200205682,3.455,4556.7,4556.0,2.63867445]
[1755200205848,3.455,4556.7,4554.9,18.57942192]
[1755200205849,3.9246,4556.7,4555.1,2.19531973]
[1755200206181,3.455,4556.7,4555.6,2.19506075]
[1755200206380,0.9228,4556.6,4555.2,0.4438]
[1755200206580,0.9228,4556.6,4555.6,2.19505845]
[1755200206784,0.4696,4556.6,4555.2,0.4438]
[1755200206969,3.46,4556.5,4556.0,2.19488707]
[1755200207147,0.002,4556.7,4556.1,0.21948871]
[1755200207351,0.002,4556.7,4555.7,0.4438]
[1755200207352,3.46,4556.6,4556.5,2.1946581]
[1755200207750,3.46,4556.6,4556.5,2.6384581]
[1755200208183,0.002,4556.7,4556.5,2.6384581]
[1755200208184,0.002,4556.7,4556.6,2.19461879]
[1755200208500,3.461,4556.7,4556.5,0.4438]
[1755200208683,3.461,4556.7,4555.7,2.56984637]
[1755200208986,3.461,4556.7,4556.4,2.19468555]
[1755200209287,3.461,4556.7,4556.1,2.19481197]
[1755200209487,0.9228,4556.6,4556.2,2.19481072]
[1755200209983,0.4696,4556.5,4555.6,0.4438]
[1755200210184,0.4696,4556.5,4556.0,2.19489445]
[1755200210384,0.4696,4556.5,4555.6,0.4438]
[1755200210592,3.461,4556.7,4556.3,2.19474352]
[1755200211087,3.461,4556.7,4556.2,2.19480054]
[1755200211394,0.4696,4556.6,4556.0,2.16050219]
[1755200211567,0.4696,4556.6,4556.1,2.19484749]
[1755200211766,3.461,4556.7,4556.1,2.19484749]
[1755200211964,0.4737,4556.5,4555.9,2.19491308]
[1755200212167,0.4737,4556.5,4556.0,2.19490038]
[1755200212385,0.4737,4556.5,4556.1,2.19485382]
[1755200212585,0.4737,4556.5,4555.5,0.4465]
[1755200212783,3.454,4556.4,4555.5,0.71066988]
[1755200212980,3.454,4556.4,4556.1,2.19482521]
[1755200213309,3.454,4556.4,4556.0,2.19490201]
[1755200213681,0.4737,4556.3,4556.0,2.19490201]
[1755200213881,0.4737,4556.3,4555.5,0.71066988]
[1755200214201,3.454,4556.4,4556.3,2.19476329]
[1755200214917,3.454,4556.4,4556.3,2.30436329]
[1755200215514,3.9277,4556.4,4556.3,0.1096]
[1755200215715,3.454,4556.4,4556.3,2.30436329]
[1755200215917,3.454,4556.4,4556.3,0.1096]
[1755200218096,4.3554,4556.4,4556.3,0.1096]
[1755200218615,3.9277,4556.4,4556.3,0.1096]
[1755200218817,3.454,4556.4,4556.3,0.1096]
[1755200219220,3.447,4556.4,4556.3,0.1096]
[1755200220330,0.002,4556.7,4556.3,0.5561]
[1755200220637,0.002,4556.7,4556.6,2.19461879]